Cogmind - Beta 12 @@@ ROGUE MODE // 2024.01.22 @ 09:45:54 // Winter2019/RPGLIKE Player: Hermelin Result: Destroyed by as-70643 with Assembled Rifle Performance ------------- Evolutions (0) 0 Regions Visited (0) 0 Robots Destroyed (4) 20 Value Destroyed (119) 119 Prototype IDs (0) 0 Alien Tech Used (0) 0 Bonus (0) 0 TOTAL SCORE: 139 Bonus ------- None Cogmind --------- Core Integrity 0/600 Matter 300/300 Energy 250/250 System Corruption 0% Temperature Cool (0) Movement Rolling (80) Location -11/Junkyard Parts ------- > --- POWER (1) -------- Ion Engine > --- PROPULSION (2) --- Light Treads Wheel > --- UTILITY (3) ------ Improved Terrain Scanner Seismic Detector > --- WEAPON (1) ------- Light Assault Rifle > --- INVENTORY (2) ---- Light Treads Medium Laser Peak State ------------ > --- POWER ------------ Ion Engine > --- PROPULSION ------- Light Treads Compact Wheel > --- UTILITY ---------- Improved Terrain Scanner Seismic Detector > --- WEAPON ----------- Light Assault Rifle > --- INVENTORY -------- Light Treads [Rating: 8] Favorites ----------- Power Ion Engine Engine Ion Engine Propulsion Light Treads Treads Light Treads Wheel Wheel Utility Improved Terrain Scanner Device Improved Terrain Scanner Weapon Light Assault Rifle Ballistic Gun Light Assault Rifle Build | -11 ------- Run | Jun Slots Evolved 3 | 3 Power . | . Propulsion 1 | 1 Utility 2 | 2 Weapon . | . Parts Attached 7 | 7 Power 1 | 1 Engine 1 | 1 Core . | . Reactor . | . Propulsion 3 | 3 Treads 1 | 1 Leg . | . Wheel 2 | 2 Hover . | . Flight . | . Utility 2 | 2 Device 2 | 2 Storage . | . Processor . | . Hackware . | . Protection . | . Artifact . | . Weapon 1 | 1 Energy Gun . | . Energy Cannon . | . Ballistic Gun 1 | 1 Ballistic Cannon . | . Launcher . | . Special Weapon . | . Impact Weapon . | . Slashing Weapon . | . Piercing Weapon . | . Special Melee Weapon . | . Unidentified Prototypes . | . Parts Lost . | . Power . | . Propulsion . | . Utility . | . Weapon . | . Highest Loss Streak . | . To Critical Strikes . | . Average Slot Usage (%) . | . Naked Turns . | . Heaviest Build 8 | 8 Greatest Support 16 | 16 Greatest Overweight (x) . | . Average Overweight (x) . | . Largest Inventory Capacity 2 | 2 Average Capacity 2 | 2 Most Carried 2 | 2 Average Carried 1 | 1 Final Capacity 2 | 2 Final Carried 2 | 2 Class Distribution -------------------- None Dominant Class ---------------- None Resources | -11 ----------- Run | Jun Matter Collected 298 | 298 Remotely . | . Salvage Created 90 | 90 Parts 5 | 5 Haulers Intercepted . | . Recyclers Shooed 1 | 1 Parts Field Recycled . | . Retrieved Matter . | . Parts Self-Destructed . | . Prevented . | . Kills | -11 ------- Run | Jun Combat Hostiles Destroyed 2 | 2 Guns 2 | 2 Classes Destroyed 3 | 3 Tunneler 1 | 1 Recycler 1 | 1 Demolisher 2 | 2 Best Kill Streak 2 | 2 Combat Bots Only 2 | 2 Max Kills in Single Turn 1 | 1 Gunslinging . | . Exploded . | . Melee . | . Uniques/NPCs Destroyed . | . Combat | -11 -------- Run | Jun Damage Taken 728 | 728 Core 601 | 601 Absorbed by Shields . | . Redirected to Core 445 | 445 Core Remaining (%) . | . Volleys Fired 28 | 28 Largest 1 | 1 Hottest 20 | 20 Shots Fired 28 | 28 Gun 28 | 28 Cannon . | . Launcher . | . Special . | . Kinetic 28 | 28 Thermal . | . Explosive . | . Electromagnetic . | . Robot Hit Streak 8 | 8 Robot Miss Streak 3 | 3 Penetration Max . | . Secondary Targets . | . Shots Hit Robots 19 | 19 Core Hits 11 | 11 Critical Kills . | . Critical Parts Destroyed 1 | 1 Critical Strikes 1 | 1 Destroy 1 | 1 Melee Attacks . | . Impact . | . Slashing . | . Piercing . | . Sneak Attacks . | . Combat Hostiles . | . Follow-up Attacks . | . Damage Inflicted 175 | 175 Guns 159 | 159 Cannons . | . Explosions . | . Melee . | . Ramming 16 | 16 Kinetic 159 | 159 Thermal . | . Explosive . | . Electromagnetic . | . Impact . | . Slashing . | . Piercing . | . Highest Corruption . | . Average Corruption . | . Corruption Purged . | . Corruption Blocked . | . Overload Shots . | . Overflow Damage . | . Projectiles . | . Explosions . | . Melee . | . Knockbacks . | . Impact . | . Kinetic . | . Secondary . | . Self-Inflicted Damage 6 | 6 Shots . | . Rammed 5 | 5 Targets Rammed 5 | 5 Kicked . | . Crushed . | . Highest Temperature . | . Average Temperature . | . Received Heat Transfer . | . Siege Activations . | . Robots Corrupted . | . Combat Hostiles . | . Parts Fried . | . Impact Corruptions . | . Robots Melted . | . Combat Hostiles . | . Parts Melted . | . Heat Transferred . | . Parts Sabotaged . | . Parts Stolen . | . Parts Stripped . | . Power Chain Reactions . | . Missiles Intercepted . | . Alert | -11 ------- Run | Jun Peak Influence 65 | 65 Initial . | . Average 5 | 5 Maximum Alert Level . | . Low Security (%) 100 | 100 Level 1 . | . Level 2 . | . Level 3 . | . Level 4 . | . Level 5 . | . High Security . | . Max Security . | . Squads Dispatched . | . Investigation . | . Extermination . | . Reinforcement . | . Assault . | . Garrison . | . Intercept . | . Searches Triggered . | . Construction Impeded . | . Haulers Reinforced . | . Active Scanning Responses . | . Cargo Convoy Interrupts . | . Stealth | -11 --------- Run | Jun Distress Signals . | . Communications Jammed . | . Distress Signals . | . Times Spotted 6 | 6 Peak Tracking Total 3 | 3 Tactical Retreats . | . Traps | -11 ------- Run | Jun Traps Triggered . | . Indirectly . | . Trap Hack Attempts . | . Triggered . | . Disarmed . | . Reprogrammed . | . Reused . | . Traps Extracted . | . Installed . | . Triggered . | . Machines | -11 ---------- Run | Jun Machines Disabled . | . Max in Single Turn . | . Machines Repaired . | . Machines Sabotaged . | . Overloaded Fab Kills . | . Hacking | -11 --------- Run | Jun Machines Accessed . | . Terminals . | . Fabricators . | . Repair Stations . | . Recycling Units . | . Scanalyzers . | . Garrison Access . | . Total Hacks . | . Successful . | . Failed . | . Catastrophic . | . Database Lockouts . | . Manual . | . Terminals . | . Fabricators . | . Repair Stations . | . Recycling Units . | . Scanalyzers . | . Garrison Access . | . Terminal Hacks . | . Fabricator Hacks . | . Repair Station Hacks . | . Recycling Unit Hacks . | . Scanalyzer . | . Garrison Access Hacks . | . Unauthorized Hacks . | . Terminals . | . Fabricators . | . Repair Stations . | . Recycling Units . | . Scanalyzers . | . Garrison Access . | . Data Cores Recovered . | . Used . | . Hacking Detections . | . Full Trace Events . | . Feedback Events . | . Feedback Blocked . | . Robot Schematics Acquired . | . Robots Built . | . Authchips . | . Time . | . Total Robot Build Rating . | . Part Schematics Acquired . | . Parts Built . | . Authchips . | . Time . | . Total Part Build Rating . | . Parts Repaired . | . Time . | . Parts Recycled . | . Recycled Matter . | . Retrieved Matter . | . Retrieved Components . | . Parts Scanalyzed . | . Part Schematics Acquired . | . Parts Damaged . | . Bothacking | -11 ------------ Run | Jun Used RIF Installer . | . Robots Hacked . | . Non-combat . | . Combat . | . Robot Hacks Applied . | . Relay Couplers Released . | . Fabnet Peak Effective % . | . Robots Rewired . | . Allies Hacked . | . Hacks Repelled . | . Allies | -11 -------- Run | Jun Total Allies . | . Largest Group . | . Highest-Rated Group . | . Highest-Rated Ally . | . Total Orders . | . Ally Attacks . | . Total Damage . | . Kills . | . Allies Corrupted . | . Allies Melted . | . Intel | -11 ------- Run | Jun Robot Analysis Total . | . Derelict Logs Recovered . | . Drone Launches . | . Drone Recoveries . | . Exploration | -11 ------------- Run | Jun Turns Passed 1740 | 1740 Spaces Moved 191 | 191 Core 2 | 2 Treads . | . Legs . | . Wheels 189 | 189 Hover . | . Flight . | . Fastest Speed 50 | 50 Average Speed 83 | 83 Slowest Speed 100 | 100 Overloaded Moves . | . Propulsion Burnouts . | . Robots Hopped . | . Cave-ins Triggered . | . Exploration Rate (%) 22 | 22 Regions Visited . Branch Regions . Pre-discovered Areas . | . Known Exits Taken . | . Unknown Exits Taken . | . Scrap Searched . | . Spaces Dug . | . Terrain Destroyed . | . Melee . | . Projectile . | . AOE . | . Terrain Rammed . | . Walls Destroyed . | . Machines Disabled . | . Actions | -11 --------- Run | Jun Total 1747 | 1747 Wait 1513 | 1513 Move 191 | 191 Hop . | . Pick Up 2 | 2 Fast Attach 6 | 6 Attach . | . Detach . | . Swap 1 | 1 Drop 1 | 1 Fire 28 | 28 Melee . | . Ram 5 | 5 Kick . | . Crush . | . Escape Stasis . | . Rewire . | . Trap . | . Miscellaneous . | . Route ------- -11/Junkyard (discovered 1 exit: [*Mat]) History --------- Turn | Location | Event 1 | -11/Junkyard | Upgraded with Propulsion slot (x1) 1 | -11/Junkyard | Upgraded with Utility slot (x2) 38 | -11/Junkyard | Discovered new exit (range 15) 1609 | -11/Junkyard | Assembled infested the area 1661 | -11/Junkyard | Core integrity fell below 50% 1707 | -11/Junkyard | Core integrity fell below 20% 1741 | -11/Junkyard | Destroyed by as-70643 with Assembled Rifle Last Messages --------------- 00727_ K-01 Serf collects debris. 00730_ T-07 Excavator is excavating. 01101_ K-01 Serf collects debris. 01609_ ALERT: Infestation in the junkyard, dispatching Demolisher response squad. 01639_ as-92714 destroyed. 01640_ as-84887 destroyed. 01642_ as-17343 destroyed. 01646_ D-53 Grenadier suffers critical hit (Destroy). 01646_ Destroyed Lgt. Deuterium Engine. 01649_ The unstable cave ceiling collapses. 01653_ D-53 Grenadier destroyed. 01655_ The unstable cave ceiling collapses. 01661_ D-53 Grenadier destroyed. 01667_ The unstable cave ceiling collapses. 01676_ Acquired 11 matter. 01692_ Acquired 6 matter. 01714_ The unstable cave ceiling collapses. 01724_ Slammed into as-70643. 01732_ The unstable cave ceiling collapses. Map ----- +----------------------------------------------------+ | | | | | | | | | | | | | | | | | | | | | | | | | ???????????????#???##??#??#??###?#???????????????? | | ????????????????????#?#??####??##?#??????????????? | | ????????????????##?###???#?###???##??????????????? | | ???????????????#?#?#?##?##?#?#####?#?????????????? | | ????????????#??##??#???#?###?##???#?##???????????? | | ??????????????##?##??#########?#?##?#????????????? | | ?????????????#?#???### "## ###?#####?#??????????? | | ???????????#?????##?# " #?#??#????#?????????? | | ??????????#??######## " #?#???#??###????????? | | ???????????#??####### " #?##?###?##?????????? | | ??????????# ???#?#??## " ##???###????????????? | | ?????????????#?##?#### " #######?#?#?????????? | | ?????????????##?###??# %a ######?##?#??#????????? | | ?????????????###########%@#############?#????????? | | ??????????#### #*=# ##?###???????? | | ??????????#### #=%# ######???????? | | ???????????#?# #%!# #########????? | | ??????????#?## ##########???? | | ??????????##?# ###########??? | | ????????????## ############?? | | ??????#??##?## #############? | | ?????#??###### ############## | | ???####?############# ## #################### | | ?############### # ############# | | #?######## # # ############# | | ########## ############# | | ########## ## # ############# | | ########## # # ############# | | ################ # # ############ | | ################ # ############ | | ############### # ############ | | ############### % ## # ## # ## ######### | | ?############ # # ### ######### | | ############# ## # ## ### ######### | | #####?### # # ## # ############## | | ######### ## ############ | | ######### # # ## ############ | | ###### # ############ ############ | +----------------------------------------------------+ Best States ------------- Heat Dissipation 25 Energy Generation 10 Energy Capacity 250 Matter Stores 300 Matter Capacity 300 Sight Range 16 Terrain Scan Range 16 Terrain Scan Density 110 Evasion (%) 44 Recoil Reduction 1 Offensive Hacking 5 Defensive Hacking 5 Item Schematics ----------------- None Robot Schematics ------------------ None Fabricated ------------ Nothing Alien Tech Used ----------------- None Achievements -------------- None Challenges ------------ None RPGLIKE | -11 --------- Run | Jun Levels Raised . | . XP Earned 3250 | 3250 XP Spent 3000 | 3000 Upgrades 8 | 8 Propulsion Slot 1 | 1 Utility Slot 2 | 2 Inventory Capacity 2 | 2 Terrain Scan Density 1 | 1 Hack Attack % 1 | 1 Hack Defense % 1 | 1 Protomatter Created . | . Protomatter Decayed . | . Game ------ Seed ProtonRegenerativeStreamer Manual? 0 Play Time 00:08:26 Cumulative 466.2 hours Start 2024.01.22 @ 09:40:59 End 2024.01.22 @ 09:45:54 Sessions 0 Manual Loads 0 Difficulty Rogue Special Mode Winter2019/RPGLIKE Game No. 185 Rogue 182 Adventurer 3 Explorer 0 Win Type - Total 8 Types 5/1/0/1/0/1/0/0/0 Lore% 84 Gallery% 89 Achievement% 78 Wizard Run 0 Options --------- ASCII 0 Keyboard 0 Movement Numpad Keybinds 0 Fullscreen 1 Font 18/SmallcapsGlow Map View 76x50 Tactical HUD 1 Map Filters NONE Filters NONE Steam X RUN: fa004c11-ee78-49fb-a6fa-921f4268062e